bitfinex-derivatives/quotes_BTCF0:USTF0_20250528
["timestamp","ask_amount","ask_price","bid_price","bid_amount"]
[1748403161826,1.5285093,108770.0,108760.0,0.18394027]
[1748403163730,1.7585093,108770.0,108760.0,0.18394027]
[1748403163937,1.7585093,108770.0,108760.0,0.00013817]
[1748403164137,1.80144286,108770.0,108760.0,0.00013817]
[1748403164838,1.7585093,108770.0,108760.0,0.00013817]
[1748403165034,1.80143487,108770.0,108760.0,0.00013817]
[1748403165430,1.75850549,108770.0,108760.0,0.00013817]
[1748403165632,1.75850549,108770.0,108760.0,0.18394027]
[1748403165940,1.80143487,108770.0,108760.0,0.00013817]
[1748403166333,1.75850549,108770.0,108760.0,0.00013817]
[1748403167031,1.76450549,108770.0,108760.0,0.00013817]
[1748403167942,1.72656324,108770.0,108760.0,0.00013817]
[1748403168237,2.12530368,108770.0,108760.0,0.00013817]
[1748403168643,0.1838021,108760.0,108750.0,0.00137927]
[1748403168934,1.15251835,108760.0,108750.0,0.01415896]
[1748403169142,1.24446635,108760.0,108750.0,0.01415896]
[1748403169349,1.24446635,108760.0,108730.0,0.26198782]
[1748403169350,0.1838359,108740.0,108730.0,0.18523232]
[1748403169526,0.66639394,108740.0,108730.0,0.56523232]
[1748403169727,0.76319394,108740.0,108730.0,0.59603232]
[1748403170732,0.76319394,108740.0,108730.0,0.59803232]
[1748403173742,0.76319394,108740.0,108730.0,0.62903232]
[1748403176852,0.76319394,108740.0,108730.0,0.69906315]
[1748403178339,0.76319394,108740.0,108730.0,0.62903232]
[1748403179938,0.76319394,108740.0,108730.0,0.62915232]
[1748403181844,0.6414359,108740.0,108730.0,0.62915232]
[1748403182051,0.6414359,108740.0,108730.0,0.75091036]
[1748403182052,0.5774359,108740.0,108730.0,0.75091036]
[1748403182353,0.5446359,108740.0,108730.0,0.75091036]
[1748403185462,0.5446359,108740.0,108730.0,0.62915232]
[1748403185754,0.1838359,108740.0,108730.0,0.62915232]
[1748403185952,0.1838359,108740.0,108730.0,0.69918315]
[1748403185953,0.5446359,108740.0,108730.0,0.69918315]
[1748403186159,0.5446359,108740.0,108730.0,0.74095422]
[1748403188862,0.5775359,108740.0,108730.0,0.74095422]
[1748403189566,0.5775359,108740.0,108730.0,0.74794461]
[1748403190357,0.5446359,108740.0,108730.0,0.74794461]
[1748403190763,0.5775359,108740.0,108730.0,0.74794461]
[1748403191265,0.5775359,108740.0,108730.0,0.74795643]
[1748403193565,0.69929394,108740.0,108730.0,0.74795643]
[1748403195459,0.5775359,108740.0,108730.0,0.70422339]
[1748403195664,0.5775359,108740.0,108730.0,0.74799026]
[1748403196258,0.61552501,108740.0,108730.0,0.74799026]
[1748403196859,0.61552501,108740.0,108730.0,0.77446333]
[1748403197960,0.61552501,108740.0,108730.0,0.89621982]
[1748403197961,0.7372815,108740.0,108730.0,0.89621982]
[1748403198357,0.7043815,108740.0,108730.0,0.78420881]
[1748403198562,0.7043815,108740.0,108730.0,0.82803617]
[1748403199570,0.7043815,108740.0,108730.0,0.88386474]
[1748403199967,0.7044274,108740.0,108730.0,0.88386711]
[1748403200168,0.7352274,108740.0,108730.0,0.82803854]
[1748403200368,0.7352274,108740.0,108730.0,0.88386711]
[1748403201176,0.7352274,108740.0,108730.0,0.82803854]
[1748403201876,0.7352274,108740.0,108730.0,0.88386711]
[1748403204177,0.69719239,108740.0,108730.0,0.88386711]
[1748403204477,0.73522283,108740.0,108730.0,0.88386711]
[1748403205271,0.37442283,108740.0,108730.0,0.88386711]
[1748403205473,0.73522283,108740.0,108730.0,0.88386711]
[1748403207070,1.22697932,108740.0,108730.0,0.47781062]
[1748403207272,1.28987932,108740.0,108730.0,0.42198205]
[1748403207673,1.29436141,108740.0,108730.0,0.42198205]
[1748403208773,1.28987932,108740.0,108730.0,0.29395782]
[1748403209085,1.28987932,108740.0,108730.0,0.26198125]
[1748403209086,1.70919932,108740.0,108730.0,0.26198125]
[1748403209275,1.70919932,108740.0,108730.0,0.31768982]
[1748403209472,1.71860144,108740.0,108730.0,0.31768982]
[1748403209786,1.71860144,108740.0,108730.0,0.31780982]
[1748403210084,1.71860144,108740.0,108730.0,0.39966302]
[1748403210583,1.71860144,108740.0,108730.0,0.45055356]
[1748403211675,1.27928144,108740.0,108730.0,0.45055356]
[1748403211875,1.69860144,108740.0,108730.0,0.45055356]
[1748403212785,1.27928144,108740.0,108730.0,0.45055356]
[1748403212980,1.27928144,108740.0,108730.0,0.26198125]
[1748403212981,1.69860144,108740.0,108730.0,0.26198125]
[1748403213183,1.69860163,108740.0,108730.0,0.23118463]
[1748403213384,1.69860163,108740.0,108730.0,0.27313305]
[1748403214278,1.69860163,108740.0,108730.0,0.30373305]
[1748403215881,1.45508865,108740.0,108730.0,0.30373305]
[1748403216081,1.69860163,108740.0,108730.0,0.30373305]
[1748403217480,1.660571,108740.0,108730.0,0.30372726]
[1748403217684,1.69859475,108740.0,108730.0,0.30372726]
[1748403220386,1.660571,108740.0,108730.0,0.25989994]
[1748403220589,1.69863452,108740.0,108730.0,0.30372423]
[1748403220978,1.27931452,108740.0,108730.0,0.30372423]
[1748403221184,1.41863452,108740.0,108730.0,0.30372423]
[1748403221379,1.41863452,108740.0,108730.0,0.36772423]
[1748403221998,1.41863452,108740.0,108730.0,0.36772345]
[1748403221999,1.41863467,108740.0,108730.0,0.36772345]
[1748403222789,1.41863467,108740.0,108730.0,0.37220554]
[1748403226185,1.380571,108740.0,108730.0,0.32838203]
[1748403226385,1.41862555,108740.0,108730.0,0.37220324]
[1748403229096,1.41862555,108740.0,108730.0,0.37220332]
[1748403230596,1.41862484,108740.0,108730.0,0.37220491]
[1748403231297,0.99930484,108740.0,108730.0,0.37220491]
[1748403231599,1.41862484,108740.0,108730.0,0.37220491]
[1748403232306,0.61348974,108740.0,108730.0,0.86784155]
[1748403232494,0.58268974,108740.0,108730.0,0.81201298]
[1748403232795,0.22188904,108740.0,108730.0,0.81201298]
[1748403233299,0.22188904,108740.0,108730.0,0.86784155]
[1748403233494,0.03805384,108740.0,108730.0,1.64796155]
[1748403233695,0.36093817,108750.0,108740.0,0.1838351]
[1748403233900,0.58279973,108750.0,108740.0,0.90587096]
[1748403234200,0.54475637,108750.0,108740.0,0.96178615]
[1748403234698,0.54475637,108750.0,108740.0,1.04361171]
[1748403235198,0.54475637,108750.0,108740.0,0.96175851]
[1748403236006,0.54475637,108750.0,108740.0,0.83995938]
[1748403236299,0.00013817,108750.0,108740.0,1.25939938]
[1748403236608,0.18395647,108750.0,108740.0,1.39206856]
[1748403237104,0.18395647,108750.0,108740.0,1.34125258]
[1748403237315,0.18395647,108750.0,108740.0,1.25939938]
[1748403237500,0.18395647,108750.0,108740.0,1.26868084]
[1748403239003,0.18395647,108750.0,108740.0,1.35053404]
[1748403239203,0.18395647,108750.0,108740.0,1.26868084]
[1748403239403,0.18395647,108750.0,108740.0,1.26862604]
[1748403243106,0.18395647,108750.0,108740.0,1.35047924]
[1748403244408,0.18395647,108750.0,108740.0,1.26860527]
[1748403244794,0.18395647,108750.0,108740.0,1.38055847]
[1748403244996,0.18395647,108750.0,108740.0,1.37111701]
[1748403245198,0.21555647,108750.0,108740.0,1.28926381]
[1748403246005,0.18395647,108750.0,108740.0,1.28926381]
[1748403246207,0.18395647,108750.0,108740.0,1.30271911]
[1748403246601,0.18395647,108750.0,108740.0,1.28865449]
[1748403246801,0.18395647,108750.0,108740.0,1.24679855]
[1748403247004,0.18395647,108750.0,108740.0,1.30271374]
[1748403247507,0.18395647,108750.0,108740.0,1.43532145]
[1748403249002,0.00013817,108750.0,108740.0,1.43532145]
[1748403249899,0.00013817,108750.0,108740.0,1.66351374]
[1748403250902,0.00013817,108750.0,108740.0,1.79609641]
[1748403251411,0.00013817,108750.0,108740.0,1.79709641]
[1748403251710,0.00013817,108750.0,108740.0,1.66451374]
[1748403252711,0.00013817,108750.0,108740.0,1.66551374]
[1748403252911,0.00013817,108750.0,108740.0,1.66547711]
[1748403253111,0.00013817,108750.0,108740.0,1.74733031]
[1748403253495,0.00013817,108750.0,108740.0,1.66547711]
[1748403255704,0.18395647,108750.0,108740.0,1.11551005]
[1748403255904,0.33590092,108750.0,108740.0,1.6566145]
[1748403256205,0.06283817,108750.0,108740.0,1.77835895]
[1748403257915,0.06283817,108750.0,108740.0,1.65659792]
[1748403260108,0.03033817,108750.0,108740.0,1.65659792]
[1748403261212,0.03033817,108750.0,108740.0,1.6566584]
[1748403261410,0.03033817,108750.0,108740.0,1.6566714]
[1748403261711,0.03033817,108750.0,108740.0,1.53494353]
[1748403261916,0.03033817,108750.0,108740.0,1.74509987]
[1748403262112,0.03033817,108750.0,108740.0,1.65155335]
[1748403262411,0.03033817,108750.0,108740.0,1.74509987]
[1748403263016,0.03033817,108750.0,108740.0,1.81462131]
[1748403264612,0.03033817,108750.0,108740.0,1.67027765]
[1748403264807,0.03033817,108750.0,108740.0,1.60075621]
[1748403268322,0.00013817,108750.0,108740.0,1.60075621]
[1748403269217,0.00013817,108750.0,108740.0,1.67027765]
[1748403269522,0.00013817,108750.0,108740.0,1.6265265]
[1748403270104,0.00013817,108750.0,108740.0,1.75872115]
[1748403270411,0.00013817,108750.0,108740.0,1.88044791]
[1748403270717,0.03347993,108760.0,108750.0,0.1838183]
[1748403270913,0.00137993,108760.0,108750.0,1.35252611]
[1748403271219,0.00137993,108760.0,108750.0,1.44607263]
[1748403272426,0.00137993,108760.0,108750.0,1.20261689]
[1748403272612,0.00137993,108760.0,108750.0,1.44707263]
[1748403273313,0.00137993,108760.0,108750.0,1.44807263]
[1748403273820,0.00137993,108760.0,108750.0,1.20461689]
[1748403274021,0.00137993,108760.0,108750.0,1.44807263]
[1748403274620,0.00137993,108760.0,108750.0,1.397842]
[1748403274830,0.00137993,108760.0,108750.0,1.44803187]
[1748403275524,0.00137993,108760.0,108750.0,1.45251396]
[1748403276827,0.00137993,108760.0,108750.0,1.45250827]
[1748403277119,0.03173817,108770.0,108760.0,0.1838014]
[1748403277322,0.03173817,108770.0,108760.0,1.69417698]
[1748403278220,0.03273817,108770.0,108760.0,1.69417698]
[1748403278420,0.00113817,108770.0,108760.0,1.83990938]
[1748403278820,0.03423817,108770.0,108760.0,1.83990938]
[1748403279626,0.03423817,108770.0,108760.0,1.63830927]
[1748403279820,0.03323817,108770.0,108760.0,1.63930927]
[1748403280021,0.03323817,108770.0,108760.0,1.76094034]
[1748403280214,0.03223817,108770.0,108760.0,1.76194034]
[1748403282225,0.00013817,108770.0,108760.0,1.76194034]
[1748403282424,0.03183817,108770.0,108760.0,1.76194034]
[1748403283129,0.03183817,108770.0,108760.0,1.81775451]
[1748403284018,0.062,108780.0,108760.0,1.75563258]
[1748403284226,0.033,108780.0,108770.0,0.76166287]
[1748403284523,0.033,108780.0,108770.0,1.10166287]
[1748403284828,0.033,108780.0,108770.0,1.18355736]
[1748403285025,0.033,108780.0,108770.0,1.2530788]
[1748403285326,0.034,108780.0,108770.0,1.10166287]
[1748403285522,0.035,108780.0,108770.0,1.10166287]
[1748403285922,0.035,108780.0,108770.0,1.10163546]
[1748403286530,0.034,108780.0,108770.0,1.10163546]
[1748403287025,0.034,108780.0,108770.0,1.15178793]
[1748403287227,0.034,108780.0,108770.0,1.30320386]
[1748403287423,0.034,108780.0,108770.0,1.23368242]
[1748403287625,0.033,108780.0,108770.0,1.23368242]
[1748403287830,0.033,108780.0,108770.0,1.30420386]
[1748403288031,0.033,108780.0,108770.0,1.30412481]
[1748403288233,0.033,108780.0,108770.0,1.23460337]
[1748403288731,0.033,108780.0,108770.0,1.24027489]
[1748403289123,0.03383817,108790.0,108780.0,0.1837665]
[1748403289319,0.06493817,108790.0,108780.0,1.7291223]
[1748403289932,0.09573817,108790.0,108780.0,1.7291223]
[1748403290130,0.09673817,108790.0,108780.0,1.7291223]
[1748403290333,0.09673817,108790.0,108780.0,1.7383511]
[1748403290529,0.09673817,108790.0,108780.0,1.63098359]
[1748403290530,0.06593817,108790.0,108780.0,1.63098359]
[1748403290735,7e-08,108790.0,108780.0,1.86000316]
[1748403291120,7e-08,108790.0,108780.0,1.88616141]
[1748403291430,0.0029,108820.0,108810.0,0.1837162]
[1748403291631,0.034,108820.0,108810.0,1.3759962]
[1748403291928,0.034,108820.0,108810.0,1.6343939]
[1748403292128,0.0651,108820.0,108810.0,1.6343939]
[1748403292334,0.06522,108820.0,108810.0,1.70429241]
[1748403292528,0.0651,108820.0,108810.0,1.58264035]
[1748403292730,0.06522,108820.0,108810.0,1.70429241]
[1748403293534,0.06522,108820.0,108810.0,1.70529241]
[1748403293830,0.06522,108820.0,108810.0,1.6353939]
[1748403294136,0.06522,108820.0,108810.0,1.51374184]
[1748403294323,0.06522,108820.0,108810.0,1.34444305]
[1748403294324,0.42602,108820.0,108810.0,1.34444305]
[1748403294518,0.76337266,108820.0,108810.0,0.52023479]
[1748403294723,1.14337266,108820.0,108810.0,0.081]
[1748403294919,0.76337266,108820.0,108810.0,0.2647175]
[1748403295733,0.6417206,108820.0,108810.0,0.2647175]
[1748403296029,0.6416006,108820.0,108810.0,0.2637175]
[1748403296234,0.6437206,108820.0,108810.0,0.2637175]
[1748403296427,0.6457206,108820.0,108810.0,0.2637175]
[1748403296629,0.76737266,108820.0,108810.0,0.2637175]
[1748403297033,0.00702,108820.0,108810.0,1.55274162]
[1748403297225,0.00702,108820.0,108810.0,1.75753641]
[1748403297433,0.00013817,108830.0,108820.0,0.1837004]
[1748403297625,0.00013817,108830.0,108820.0,2.69769246]
[1748403297822,0.00013817,108830.0,108820.0,2.75335859]
[1748403300038,0.00013817,108830.0,108820.0,2.75535859]
[1748403300336,0.03303817,108830.0,108820.0,2.75535859]
[1748403300525,0.03303817,108830.0,108820.0,2.5780404]
[1748403300725,0.03303817,108830.0,108820.0,2.69969246]
[1748403301535,0.03303817,108830.0,108820.0,2.74129949]
[1748403303534,0.03303817,108830.0,108820.0,2.61964743]
[1748403303737,0.03303817,108830.0,108820.0,2.74129949]
[1748403304445,0.00025817,108830.0,108820.0,2.8109653]
[1748403304742,0.00025817,108830.0,108820.0,2.74129949]
[1748403305133,0.00025817,108830.0,108820.0,2.68931324]
[1748403305435,0.00025817,108830.0,108820.0,2.74129949]
[1748403305632,1e-07,108850.0,108840.0,0.1836667]
[1748403305834,0.001,108860.0,108850.0,0.1836498]
[1748403306034,0.001,108860.0,108850.0,2.56718622]
[1748403306341,0.66708506,108860.0,108850.0,1.6276]
[1748403306543,0.76028506,108860.0,108850.0,1.5976]
[1748403306735,0.76028506,108860.0,108850.0,1.7812495]
[1748403307039,0.76028506,108860.0,108850.0,1.7832495]
[1748403307247,0.76028506,108860.0,108850.0,1.7842495]
[1748403307742,0.76028506,108860.0,108850.0,0.003]
[1748403307946,1.10214906,108860.0,108850.0,0.003]
[1748403308243,1.10214906,108860.0,108840.0,0.00013817]
[1748403308244,0.1836496,108850.0,108840.0,0.00013817]
[1748403308443,0.73060166,108850.0,108840.0,0.00013817]
[1748403308638,1.07247366,108850.0,108840.0,0.00013817]
[1748403309143,1.20247366,108850.0,108840.0,0.00013817]
[1748403309443,0.82247366,108850.0,108840.0,0.00013817]
[1748403310151,0.82547366,108850.0,108840.0,0.00013817]
[1748403311142,0.82847366,108850.0,108840.0,0.00013817]
[1748403311448,0.86614638,108850.0,108840.0,0.00013817]
[1748403312841,1.18614638,108850.0,108840.0,0.00013817]
[1748403313547,1.09427438,108850.0,108840.0,0.00013817]
[1748403314248,1.05660166,108850.0,108840.0,0.00013817]
[1748403314748,1.52135659,108850.0,108840.0,0.00013817]
[1748403315045,1.55906771,108850.0,108840.0,0.00013817]
[1748403317250,1.91986771,108850.0,108840.0,0.00013817]
[1748403317551,1.91986771,108850.0,108840.0,0.01407459]
[1748403317748,1.91986771,108850.0,108840.0,0.00013817]
[1748403319150,1.9240698,108850.0,108840.0,0.00013817]
[1748403320250,1.84523116,108850.0,108840.0,0.00013817]
[1748403320551,1.96708322,108850.0,108840.0,0.00013817]
[1748403321856,1.96708322,108850.0,108840.0,0.01357949]
[1748403322055,1.96708322,108850.0,108840.0,0.00013817]
[1748403323053,2.05895522,108850.0,108840.0,0.00013817]
[1748403323558,2.18060728,108850.0,108840.0,0.00013817]
[1748403323857,2.23792968,108850.0,108840.0,0.00013817]
[1748403324654,0.1836672,108840.0,108830.0,0.00149801]
[1748403324954,1.35114625,108840.0,108830.0,0.00012]
[1748403325151,1.48584367,108840.0,108830.0,1e-07]
[1748403325355,1.48584367,108840.0,108820.0,0.01362873]
[1748403325356,0.1836841,108830.0,108820.0,0.01362873]
[1748403325544,0.1836841,108830.0,108810.0,0.0607]
[1748403325545,0.183701,108820.0,108810.0,0.0607]
[1748403325744,0.07011493,108820.0,108810.0,0.73686996]
[1748403325952,0.22141593,108820.0,108810.0,1.07916996]
[1748403326147,0.183701,108820.0,108810.0,1.12072982]
[1748403326761,0.183821,108820.0,108810.0,0.75992982]
[1748403327062,0.216221,108820.0,108810.0,0.32827776]
[1748403327447,0.216221,108820.0,108810.0,0.32927776]
[1748403327757,0.216221,108820.0,108810.0,0.33127776]
[1748403328947,0.183821,108820.0,108810.0,0.45292982]
[1748403329147,0.183821,108820.0,108810.0,0.75292982]
[1748403329850,0.183821,108820.0,108810.0,0.76676918]
[1748403330250,0.183821,108820.0,108810.0,0.65511712]
[1748403330453,0.183821,108820.0,108810.0,0.77676918]
[1748403330454,0.215121,108820.0,108810.0,0.77676918]
[1748403331359,0.575921,108820.0,108810.0,0.46676918]
[1748403331560,0.69757306,108820.0,108810.0,0.15139922]
[1748403331753,0.81087306,108820.0,108810.0,0.15139922]
[1748403332059,0.689221,108820.0,108810.0,0.33523752]
[1748403335462,0.69370309,108820.0,108810.0,0.33523752]
[1748403336250,0.81535515,108820.0,108810.0,0.33523752]
[1748403336652,0.85320251,108820.0,108810.0,0.33523752]
[1748403336965,1.27912251,108820.0,108810.0,0.14772256]
[1748403337447,1.27912251,108820.0,108810.0,0.14760256]
[1748403337649,1.27912251,108820.0,108810.0,0.14772256]
[1748403338256,1.27912251,108820.0,108810.0,0.07765936]
[1748403338850,1.57912251,108820.0,108810.0,0.00312]
[1748403339045,1.62207915,108820.0,108810.0,0.03372]
[1748403339450,1.62207915,108820.0,108810.0,0.0336]
[1748403339656,1.62207915,108820.0,108810.0,0.03372]
[1748403340061,1.57912251,108820.0,108810.0,0.03372]
[1748403340254,1.57912251,108820.0,108810.0,0.06432]
[1748403340962,1.54127515,108820.0,108810.0,0.06432]
[1748403341164,1.57912101,108820.0,108810.0,0.06432]
[1748403341360,1.61696699,108820.0,108810.0,0.06432]
[1748403342864,1.61696699,108820.0,108810.0,0.1343832]
[1748403343159,1.61696699,108820.0,108810.0,0.0731832]
[1748403343366,1.61696699,108820.0,108810.0,0.0730632]
[1748403343673,1.61696699,108820.0,108810.0,0.0731832]
[1748403344161,1.61696699,108820.0,108810.0,0.1053832]
[1748403344761,1.61696699,108820.0,108810.0,0.0731832]
[1748403345363,1.19104699,108820.0,108810.0,0.0731832]
[1748403345568,1.61783421,108820.0,108810.0,0.0731832]
[1748403346066,1.61783421,108820.0,108810.0,0.03532]
[1748403348268,1.61783421,108820.0,108810.0,0.00312]
[1748403349364,1.61783421,108820.0,108810.0,0.0731832]
[1748403349567,1.66077414,108820.0,108810.0,0.00312]
[1748403349752,1.58000113,108820.0,108810.0,0.0731832]
[1748403350069,1.53913715,108820.0,108810.0,0.0731832]
[1748403350258,1.53913715,108820.0,108810.0,0.1031832]
[1748403350459,1.66078921,108820.0,108810.0,0.1031832]
[1748403353766,1.53913715,108820.0,108810.0,0.1031832]
[1748403354072,1.66078921,108820.0,108810.0,0.1031832]
[1748403354368,1.66382602,108820.0,108810.0,0.1021832]
[1748403354672,1.66382602,108820.0,108810.0,0.1001832]
[1748403354875,1.66582602,108820.0,108810.0,0.1001832]
[1748403355170,1.66582602,108820.0,108810.0,0.1329832]
[1748403355553,1.54337396,108820.0,108810.0,0.1329832]
[1748403355755,1.66502602,108820.0,108810.0,0.1329832]
[1748403356065,1.66502602,108820.0,108810.0,0.1633832]
[1748403356455,1.54337396,108820.0,108810.0,0.1633832]
[1748403356769,1.66602602,108820.0,108810.0,0.1633832]
[1748403356972,1.24002602,108820.0,108810.0,0.1633832]
[1748403357171,1.20962602,108820.0,108810.0,0.347102]
[1748403357364,1.61481396,108820.0,108810.0,0.347102]
[1748403358371,1.53398907,108820.0,108810.0,0.347102]
[1748403358568,1.57696874,108820.0,108810.0,0.347102]
[1748403358769,1.61483662,108820.0,108810.0,0.347102]
[1748403359166,1.73648868,108820.0,108810.0,0.347102]
[1748403359874,1.73624868,108820.0,108810.0,0.347102]
[1748403360278,1.61459662,108820.0,108810.0,0.347102]
[1748403360468,1.73612868,108820.0,108810.0,0.347102]
[1748403360667,1.73624868,108820.0,108810.0,0.347102]
[1748403361773,1.61459662,108820.0,108810.0,0.347102]
[1748403362167,1.05509662,108820.0,108810.0,0.347102]
[1748403362374,1.02367662,108820.0,108810.0,0.46875406]
[1748403362572,0.76379662,108820.0,108810.0,0.39869086]
[1748403362874,0.76367662,108820.0,108810.0,0.39869086]
[1748403363076,0.76367662,108820.0,108810.0,0.40869086]
[1748403363077,0.76379662,108820.0,108810.0,0.40869086]
[1748403363268,0.76367662,108820.0,108810.0,0.40869086]
[1748403363469,0.76067662,108820.0,108810.0,0.40869086]
[1748403363667,0.67279662,108820.0,108810.0,0.4788682]
[1748403363876,0.62233486,108820.0,108810.0,0.46410926]
[1748403364066,0.58646698,108820.0,108810.0,0.46410926]
[1748403364269,0.22566698,108820.0,108810.0,0.46410926]
[1748403364475,0.22366698,108820.0,108810.0,0.46410926]
[1748403364868,0.22814907,108820.0,108810.0,0.46410926]
[1748403365467,0.22614907,108820.0,108810.0,0.46410926]
[1748403365779,0.22166698,108820.0,108810.0,0.46410926]
[1748403366369,0.03796598,108820.0,108810.0,0.95576132]
[1748403366877,0.04232807,108820.0,108810.0,0.95576132]
[1748403367077,0.04244807,108820.0,108810.0,0.95576132]
[1748403367673,0.04244807,108820.0,108810.0,1.0897556]
[1748403368376,0.22614997,108820.0,108810.0,0.50522474]
[1748403368583,0.58694997,108820.0,108810.0,0.51103308]
[1748403368882,0.61724997,108820.0,108810.0,0.51391308]
[1748403369178,0.58694997,108820.0,108810.0,0.63568514]
[1748403369385,0.58694997,108820.0,108810.0,0.69110354]
[1748403371673,0.22614997,108820.0,108810.0,0.69107053]
[1748403373782,0.22614997,108820.0,108810.0,0.93107053]
[1748403374489,0.04232807,108820.0,108810.0,0.93107053]
[1748403374683,0.22614997,108820.0,108810.0,0.88100375]
[1748403374888,0.22614997,108820.0,108810.0,0.9310471]
[1748403375277,0.04244807,108820.0,108810.0,0.9310471]
[1748403375580,0.04244807,108820.0,108810.0,0.88100375]
[1748403376972,0.04244807,108820.0,108810.0,0.93103717]
[1748403377475,0.22614997,108820.0,108810.0,0.93103717]
[1748403377874,0.04244807,108820.0,108810.0,0.93103717]
[1748403378076,0.22614997,108820.0,108810.0,0.93103717]
[1748403380689,0.22614997,108820.0,108810.0,0.93102932]
[1748403384785,0.22614997,108820.0,108810.0,0.84913483]
[1748403384981,0.22614997,108820.0,108810.0,0.93081054]
[1748403386498,0.25914997,108820.0,108810.0,0.93081054]
[1748403388300,0.25914997,108820.0,108810.0,0.79910926]
[1748403389200,0.25466788,108820.0,108810.0,0.79610926]
[1748403390097,0.25914997,108820.0,108810.0,0.79610926]
[1748403390996,0.25914997,108820.0,108810.0,1.15690926]
[1748403391203,0.07544807,108820.0,108810.0,1.15690926]
[1748403391793,0.07544807,108820.0,108810.0,1.23858497]
[1748403392399,0.25915007,108820.0,108810.0,1.15690926]
[1748403392587,0.25915007,108820.0,108810.0,1.18316657]
[1748403393210,0.07544807,108820.0,108810.0,1.18316657]
[1748403393498,0.07544807,108820.0,108810.0,1.35493977]
[1748403393702,0.07544807,108820.0,108810.0,1.42454969]
[1748403394306,0.07544807,108820.0,108810.0,1.30289763]
[1748403394497,0.07544807,108820.0,108810.0,1.2751859]
[1748403394896,0.10734807,108820.0,108810.0,1.15353384]
[1748403397701,0.10734807,108820.0,108810.0,1.24803384]
[1748403398099,0.10734807,108820.0,108810.0,1.25990465]
[1748403399404,0.10734807,108820.0,108810.0,1.38155671]
[1748403399907,0.10734807,108820.0,108810.0,1.25990465]
[1748403400805,0.10734807,108820.0,108810.0,1.38155671]
[1748403401011,0.10734807,108820.0,108810.0,1.38156466]
[1748403402418,0.10722807,108820.0,108810.0,1.38156808]
[1748403402609,0.10734807,108820.0,108810.0,1.38156808]
[1748403402907,0.10734807,108820.0,108810.0,1.43868066]
[1748403404002,0.10734807,108820.0,108810.0,1.3170286]
[1748403406411,0.10734807,108820.0,108810.0,1.43868066]
[1748403407908,0.10734807,108820.0,108810.0,1.38156808]
[1748403408816,0.10734807,108820.0,108810.0,1.25991602]
[1748403409924,0.10734807,108820.0,108810.0,0.89899602]
[1748403410118,0.10734807,108820.0,108810.0,1.31691744]
[1748403410617,0.29105027,108820.0,108810.0,1.38023744]
[1748403410817,0.32335027,108820.0,108810.0,1.38023744]
[1748403411116,0.32335027,108820.0,108810.0,1.3802503]
[1748403411816,0.32335027,108820.0,108810.0,1.17941634]
[1748403412417,0.13964807,108820.0,108810.0,1.10982707]
[1748403415315,0.10734807,108820.0,108810.0,1.23147913]
[1748403415516,0.10734807,108820.0,108810.0,1.59227913]
[1748403415711,0.10734807,108820.0,108810.0,1.6618684]
[1748403416106,0.10734807,108820.0,108810.0,1.59227913]
[1748403416720,0.10734807,108820.0,108810.0,1.69191913]
[1748403417018,0.04244807,108820.0,108810.0,1.65026048]
[1748403417213,0.04244807,108820.0,108810.0,1.8935646]
[1748403417402,0.04244807,108820.0,108810.0,3.31167482]
[1748403417606,0.03796598,108820.0,108810.0,3.33848282]
[1748403418001,0.03784598,108820.0,108810.0,3.33848282]
[1748403418203,0.03796598,108820.0,108810.0,3.33848282]
[1748403418403,0.03784598,108820.0,108810.0,3.33748282]
[1748403418621,0.04244807,108820.0,108810.0,3.24308555]
[1748403419422,0.04244807,108820.0,108810.0,3.24383967]
[1748403420718,0.04244807,108820.0,108810.0,3.32559611]
[1748403420919,0.04244807,108820.0,108810.0,3.08229199]
[1748403421114,0.04244807,108820.0,108810.0,3.32559611]
[1748403421619,0.04244807,108820.0,108810.0,3.39536554]
[1748403421826,0.04244807,108820.0,108810.0,3.3006846]
[1748403422322,0.04244807,108820.0,108810.0,3.39708187]
[1748403422510,0.04244807,108820.0,108810.0,3.34023694]
[1748403423110,0.04244807,108820.0,108810.0,3.43365304]
[1748403424825,0.04244807,108820.0,108810.0,3.50188771]
[1748403425023,0.04244807,108820.0,108810.0,3.44504278]
[1748403425321,0.04244807,108820.0,108810.0,3.24383967]
[1748403426025,0.04244807,108820.0,108810.0,3.34537848]
[1748403426626,0.04244807,108820.0,108810.0,3.43727848]
[1748403427028,0.03223817,108830.0,108820.0,0.1837024]
[1748403427325,0.00137905,108840.0,108830.0,0.1836855]
[1748403427626,0.00137905,108840.0,108830.0,3.24318962]
[1748403427829,0.00137905,108840.0,108830.0,3.12153756]
[1748403428419,0.00137905,108840.0,108830.0,2.48139737]
[1748403428420,0.00149905,108840.0,108830.0,2.48139737]
[1748403428617,0.5768887,108840.0,108830.0,0.44634943]
[1748403428814,0.73134076,108840.0,108830.0,0.23943338]
[1748403429021,0.73134076,108840.0,108830.0,0.2544294]
[1748403429230,0.73134076,108840.0,108830.0,0.1846856]
[1748403429424,0.6096887,108840.0,108830.0,0.1846856]
[1748403429629,0.6096887,108840.0,108830.0,0.22750899]
[1748403430314,0.6419887,108840.0,108830.0,0.22750899]
[1748403430514,0.6439887,108840.0,108830.0,0.22750899]
[1748403431329,0.6449887,108840.0,108830.0,0.45716105]
[1748403431732,0.6449887,108840.0,108830.0,0.33550899]
[1748403434433,0.6449887,108840.0,108830.0,0.45716105]
[1748403435323,0.6449887,108840.0,108830.0,0.33550899]
[1748403435523,0.6449887,108840.0,108830.0,0.45716105]
[1748403435924,0.6449887,108840.0,108830.0,0.15182339]
[1748403436125,0.6449887,108840.0,108830.0,0.22550879]
[1748403436126,0.76664076,108840.0,108830.0,0.22550879]
[1748403439038,0.80427478,108840.0,108830.0,0.22550879]
[1748403439641,0.49895402,108840.0,108830.0,0.70716085]
[1748403439830,0.07208209,108840.0,108830.0,0.73073746]
[1748403440139,0.07220209,108840.0,108830.0,1.17958524]
[1748403440337,0.07208209,108840.0,108830.0,1.17958524]
[1748403440633,0.00760209,108840.0,108830.0,1.44678953]
[1748403440838,8e-08,108840.0,108830.0,1.44677708]
[1748403441043,0.00012008,108840.0,108830.0,1.44677708]
[1748403441334,8e-08,108840.0,108830.0,1.37715328]
[1748403441541,0.00012008,108840.0,108830.0,1.37703328]
[1748403441736,0.00012008,108840.0,108830.0,1.39796797]
[1748403441927,0.00012008,108840.0,108830.0,2.94778454]
[1748403442331,0.00012008,108840.0,108830.0,2.94978454]
[1748403442533,0.00012008,108840.0,108830.0,2.89996797]
[1748403442733,0.00012008,108840.0,108830.0,2.90296797]
[1748403444441,0.00013817,108850.0,108830.0,2.71928257]
[1748403444737,0.0629,108860.0,108850.0,0.1836517]
[1748403444947,0.0629,108860.0,108850.0,1.08181601]
[1748403445125,0.06302,108860.0,108850.0,1.22468687]
[1748403445325,0.0629,108860.0,108850.0,2.64310613]
[1748403445537,0.06302,108860.0,108850.0,2.64310613]
[1748403445934,0.06302,108860.0,108850.0,2.64410613]
[1748403447640,0.06302,108860.0,108850.0,2.64510613]
[1748403449237,0.06302,108860.0,108850.0,2.52345407]